[Event "MČR družstev mladších žáků 2024"]
[Site "Harrachov, Czech Republic"]
[Date "2024.06.15"]
[Round "7.29"]
[White "Fiala Tomas"]
[Black "Kobersky Matyas"]
[Result "1/2-1/2"]
[TimeControl "25+10"]
[WhiteFideId "23770040"]
[BlackFideId "23747501"]
[WhiteElo "1203"]
[BlackElo "1206"]

1. e4 {[%clk 00:25:17]} {[%emt 00:00:03]} c5 {[%clk 00:25:11]} {[%emt
00:00:10]} 2. c4 {[%clk 00:24:33]} {[%emt 00:00:54]} d6 {[%clk 00:25:14]}
{[%emt 00:00:06]} 3. Nc3 {[%clk 00:24:27]} {[%emt 00:00:15]} Nf6 {[%clk
00:25:11]} {[%emt 00:00:14]} 4. h3 {[%clk 00:24:02]} {[%emt 00:00:35]} Nc6
{[%clk 00:25:11]} {[%emt 00:00:10]} 5. Nf3 {[%clk 00:23:49]} {[%emt 00:00:22]}
Bd7 {[%clk 00:25:08]} {[%emt 00:00:15]} 6. d4 {[%clk 00:23:31]} {[%emt
00:00:28]} cxd4 {[%clk 00:25:02]} {[%emt 00:00:16]} 7. Nxd4 {[%clk 00:23:36]}
{[%emt 00:00:05]} Nxd4 {[%clk 00:25:04]} {[%emt 00:00:08]} 8. Qxd4 {[%clk
00:23:36]} {[%emt 00:00:09]} e5 {[%clk 00:25:03]} {[%emt 00:00:11]} 9. Qd1
{[%clk 00:22:09]} {[%emt 00:01:37]} h6 {[%clk 00:25:01]} {[%emt 00:00:12]} 10.
Be3 {[%clk 00:21:06]} {[%emt 00:01:14]} Be7 {[%clk 00:24:43]} {[%emt 00:00:27]}
11. Be2 {[%clk 00:20:52]} {[%emt 00:00:23]} Bc6 {[%clk 00:24:46]} {[%emt
00:00:08]} 12. f3 {[%clk 00:19:13]} {[%emt 00:01:49]} Qd7 {[%clk 00:23:20]}
{[%emt 00:01:38]} 13. O-O {[%clk 00:16:32]} {[%emt 00:02:49]} Nh5 {[%clk
00:20:47]} {[%emt 00:02:43]} 14. Qd2 {[%clk 00:12:23]} {[%emt 00:04:20]} Ng3
{[%clk 00:19:48]} {[%emt 00:01:09]} 15. Rfd1 {[%clk 00:11:31]} {[%emt
00:01:02]} Nxe2+ {[%clk 00:19:34]} {[%emt 00:00:24]} 16. Qxe2 {[%clk 00:11:01]}
{[%emt 00:00:40]} Qe6 {[%clk 00:19:06]} {[%emt 00:00:38]} 17. Nd5 {[%clk
00:10:04]} {[%emt 00:01:07]} Bxd5 {[%clk 00:17:39]} {[%emt 00:01:36]} 18. cxd5
{[%clk 00:10:05]} {[%emt 00:00:10]} Qg6 {[%clk 00:17:32]} {[%emt 00:00:17]} 19.
Qb5+ {[%clk 00:08:35]} {[%emt 00:01:40]} Kf8 {[%clk 00:16:26]} {[%emt
00:01:16]} 20. Qxb7 {[%clk 00:08:10]} {[%emt 00:00:35]} Re8 {[%clk 00:15:46]}
{[%emt 00:00:49]} 21. Qxa7 {[%clk 00:07:40]} {[%emt 00:00:41]} Qg3 {[%clk
00:15:03]} {[%emt 00:00:52]} 22. Qd7 {[%clk 00:06:15]} {[%emt 00:01:34]} g6
{[%clk 00:13:47]} {[%emt 00:01:28]} 23. Qg4 {[%clk 00:05:42]} {[%emt 00:00:41]}
Qxg4 {[%clk 00:13:32]} {[%emt 00:00:26]} 24. hxg4 {[%clk 00:05:50]} {[%emt
00:00:02]} Bh4 {[%clk 00:13:37]} {[%emt 00:00:06]} 25. Bf2 {[%clk 00:05:43]}
{[%emt 00:00:16]} Bg5 {[%clk 00:12:22]} {[%emt 00:01:24]} 26. a4 {[%clk
00:05:13]} {[%emt 00:00:42]} Ra8 {[%clk 00:12:21]} {[%emt 00:00:09]} 27. b4
{[%clk 00:05:09]} {[%emt 00:00:15]} Kg7 {[%clk 00:12:20]} {[%emt 00:00:10]} 28.
Rdb1 {[%clk 00:04:58]} {[%emt 00:00:22]} Rhb8 {[%clk 00:12:27]} {[%emt
00:00:03]} 29. a5 {[%clk 00:05:02]} {[%emt 00:00:06]} Rb5 {[%clk 00:12:16]}
{[%emt 00:00:21]} 30. a6 {[%clk 00:04:46]} {[%emt 00:00:27]} Bd2 {[%clk
00:12:09]} {[%emt 00:00:15]} 31. Ra4 {[%clk 00:04:13]} {[%emt 00:00:44]} Bc3
{[%clk 00:11:24]} {[%emt 00:00:56]} 32. Be1 {[%clk 00:03:51]} {[%emt 00:00:31]}
Bd4+ {[%clk 00:11:21]} {[%emt 00:00:12]} 33. Kh1 {[%clk 00:03:54]} {[%emt
00:00:08]} Ra7 {[%clk 00:11:11]} {[%emt 00:00:21]} 34. Rc1 {[%clk 00:03:33]}
{[%emt 00:00:31]} Rb6 {[%clk 00:11:08]} {[%emt 00:00:13]} 35. Kh2 {[%clk
00:03:00]} {[%emt 00:00:43]} Raxa6 {[%clk 00:10:58]} {[%emt 00:00:19]} 36. Rxa6
{[%clk 00:02:51]} {[%emt 00:00:19]} Rxa6 {[%clk 00:11:06]} {[%emt 00:00:02]} 37.
Rc6 {[%clk 00:02:54]} {[%emt 00:00:08]} Ra1 {[%clk 00:10:55]} {[%emt 00:00:20]}
38. Bc3 {[%clk 00:02:23]} {[%emt 00:00:52]} Bxc3 {[%clk 00:10:17]} {[%emt
00:00:58]} 39. Rxc3 {[%clk 00:02:30]} {[%emt 00:00:03]} Rb1 {[%clk 00:10:22]}
{[%emt 00:00:05]} 40. Rc4 {[%clk 00:01:37]} {[%emt 00:01:03]} Rb2 {[%clk
00:10:21]} {[%emt 00:00:11]} 41. Kh3 {[%clk 00:01:27]} {[%emt 00:00:20]} Kf6
{[%clk 00:10:24]} {[%emt 00:00:06]} 42. g3 {[%clk 00:01:11]} {[%emt 00:00:26]}
Kg5 {[%clk 00:10:15]} {[%emt 00:00:18]} 43. Rc7 {[%clk 00:01:06]} {[%emt
00:00:17]} f5 {[%clk 00:10:01]} {[%emt 00:00:24]} 44. gxf5 {[%clk 00:00:49]}
{[%emt 00:00:26]} gxf5 {[%clk 00:10:06]} {[%emt 00:00:06]} 45. exf5 {[%clk
00:00:43]} {[%emt 00:00:15]} Kxf5 {[%clk 00:10:11]} {[%emt 00:00:05]} 46. Rh7
{[%clk 00:00:35]} {[%emt 00:00:17]} Kg6 {[%clk 00:09:59]} {[%emt 00:00:23]} 47.
Rd7 {[%clk 00:00:37]} {[%emt 00:00:09]} Rxb4 {[%clk 00:10:02]} {[%emt
00:00:07]} 48. Rxd6+ {[%clk 00:00:45]} {[%emt 00:00:02]} Kg5 {[%clk 00:10:09]}
{[%emt 00:00:03]} 49. Re6 {[%clk 00:00:40]} {[%emt 00:00:14]} Rb3 {[%clk
00:09:12]} {[%emt 00:01:07]} 50. Rxe5+ {[%clk 00:00:35]} {[%emt 00:00:16]} Kg6
{[%clk 00:09:13]} {[%emt 00:00:09]} 51. f4 {[%clk 00:00:36]} {[%emt 00:00:09]}
Rd3 {[%clk 00:08:57]} {[%emt 00:00:25]} 52. Kg4 {[%clk 00:00:23]} {[%emt
00:00:24]} Kf6 {[%clk 00:08:55]} {[%emt 00:00:12]} 53. Rf5+ {[%clk 00:00:25]}
{[%emt 00:00:06]} Kg6 {[%clk 00:09:01]} {[%emt 00:00:05]} 54. Re5 {[%clk
00:00:29]} {[%emt 00:00:06]} Kf6 {[%clk 00:09:10]} {[%emt 00:00:02]} 55. Rh5
{[%clk 00:00:34]} {[%emt 00:00:04]} Kg6 {[%clk 00:09:12]} {[%emt 00:00:08]} 56.
Re5 {[%clk 00:00:22]} {[%emt 00:00:22]} Kf6 {[%clk 00:09:13]} {[%emt 00:00:10]}
57. Re6+ {[%clk 00:00:24]} {[%emt 00:00:08]} Kg7 {[%clk 00:09:13]} {[%emt
00:00:08]} 58. Re5 {[%clk 00:00:30]} {[%emt 00:00:06]} Kf6 {[%clk 00:09:20]}
{[%emt 00:00:03]} 59. Rf5+ {[%clk 00:00:17]} {[%emt 00:00:23]} Kg6 {[%clk
00:09:27]} {[%emt 00:00:03]} 60. Re5 {[%clk 00:00:21]} {[%emt 00:00:06]} Kf6
{[%clk 00:09:32]} {[%emt 00:00:05]} 1/2-1/2



[ePGN "0.1;DGT LiveChess/2.2.6"]

[Event "MČR družstev mladších žáků 2024"]
[Site "Harrachov, Czech Republic"]
[Date "2024.06.15"]
[Round "7.3"]
[White "Kolar Edvard"]
[Black "Levchenko Alisa"]
[Result "1/2-1/2"]
[TimeControl "25+10"]
[WhiteFideId "23746238"]
[BlackFideId "23760311"]
[WhiteElo "1553"]
[BlackElo "1302"]

1. e4 {[%clk 00:25:18]} e6 {[%clk 00:25:19]} {[%emt 00:00:01]} 2. d4 {[%clk
00:25:26]} {[%emt 00:00:03]} d5 {[%clk 00:25:28]} {[%emt 00:00:01]} 3. Nc3
{[%clk 00:25:28]} {[%emt 00:00:07]} Nf6 {[%clk 00:25:30]} {[%emt 00:00:08]} 4.
Bg5 {[%clk 00:25:37]} {[%emt 00:00:01]} dxe4 {[%clk 00:25:20]} {[%emt
00:00:20]} 5. Nxe4 {[%clk 00:25:37]} {[%emt 00:00:09]} Be7 {[%clk 00:25:27]}
{[%emt 00:00:03]} 6. Bxf6 {[%clk 00:25:09]} {[%emt 00:00:39]} Bxf6 {[%clk
00:25:35]} {[%emt 00:00:02]} 7. Nxf6+ {[%clk 00:25:16]} {[%emt 00:00:02]} Qxf6
{[%clk 00:25:43]} {[%emt 00:00:02]} 8. Bd3 {[%clk 00:25:24]} {[%emt 00:00:03]}
Bd7 {[%clk 00:25:35]} {[%emt 00:00:17]} 9. Nf3 {[%clk 00:25:23]} {[%emt
00:00:11]} Bc6 {[%clk 00:24:55]} {[%emt 00:00:50]} 10. c3 {[%clk 00:24:43]}
{[%emt 00:00:51]} Nd7 {[%clk 00:24:11]} {[%emt 00:00:55]} 11. Qe2 {[%clk
00:23:58]} {[%emt 00:00:55]} Nb6 {[%clk 00:22:58]} {[%emt 00:01:22]} 12. O-O-O
{[%clk 00:23:09]} {[%emt 00:00:59]} O-O-O {[%clk 00:22:40]} {[%emt 00:00:28]}
13. Rhg1 {[%clk 00:22:48]} {[%emt 00:00:30]} Nd5 {[%clk 00:22:12]} {[%emt
00:00:38]} 14. Ne5 {[%clk 00:19:38]} {[%emt 00:03:21]} Nf4 {[%clk 00:21:06]}
{[%emt 00:01:16]} 15. Qf1 {[%clk 00:18:50]} {[%emt 00:00:57]} Nxd3+ {[%clk
00:20:34]} {[%emt 00:00:41]} 16. Nxd3 {[%clk 00:18:38]} {[%emt 00:00:23]} Bb5
{[%clk 00:19:59]} {[%emt 00:00:45]} 17. Qe1 {[%clk 00:18:06]} {[%emt 00:00:41]}
Qh6+ {[%clk 00:17:44]} {[%emt 00:02:25]} 18. Kb1 {[%clk 00:17:32]} {[%emt
00:00:44]} Bxd3+ {[%clk 00:17:46]} {[%emt 00:00:08]} 19. Rxd3 {[%clk 00:17:39]}
{[%emt 00:00:03]} Qxh2 {[%clk 00:17:52]} {[%emt 00:00:03]} 20. Rg3 {[%clk
00:17:09]} {[%emt 00:00:40]} Qh6 {[%clk 00:17:05]} {[%emt 00:00:56]} 21. Qe5
{[%clk 00:16:30]} {[%emt 00:00:49]} g6 {[%clk 00:13:59]} {[%emt 00:03:17]} 22.
Rf3 {[%clk 00:15:59]} {[%emt 00:00:42]} f5 {[%clk 00:11:35]} {[%emt 00:02:34]}
23. Qxe6+ {[%clk 00:15:40]} {[%emt 00:00:29]} Kb8 {[%clk 00:11:42]} {[%emt
00:00:04]} 24. Re1 {[%clk 00:15:28]} {[%emt 00:00:22]} Qg7 {[%clk 00:10:00]}
{[%emt 00:01:47]} 25. Rfe3 {[%clk 00:15:20]} {[%emt 00:00:22]} c6 {[%clk
00:09:01]} {[%emt 00:01:09]} 26. Qb3 {[%clk 00:15:22]} {[%emt 00:00:08]} Rd7
{[%clk 00:08:21]} {[%emt 00:00:50]} 27. Re6 {[%clk 00:14:20]} {[%emt 00:01:12]}
Rhd8 {[%clk 00:07:24]} {[%emt 00:01:06]} 28. Rxc6 {[%clk 00:13:59]} {[%emt
00:00:31]} Rd6 {[%clk 00:05:23]} {[%emt 00:02:11]} 29. Rc5 {[%clk 00:13:19]}
{[%emt 00:00:50]} Qd7 {[%clk 00:04:14]} {[%emt 00:01:17]} 30. Rce5 {[%clk
00:13:15]} {[%emt 00:00:16]} Qc6 {[%clk 00:04:10]} {[%emt 00:00:13]} 31. f3
{[%clk 00:12:25]} {[%emt 00:01:01]} Rd5 {[%clk 00:03:36]} {[%emt 00:00:44]} 32.
Re7 {[%clk 00:11:34]} {[%emt 00:01:00]} R5d7 {[%clk 00:03:38]} {[%emt
00:00:08]} 33. R7e5 {[%clk 00:09:52]} {[%emt 00:01:53]} Rd5 {[%clk 00:03:28]}
{[%emt 00:00:19]} 34. Rxd5 {[%clk 00:09:40]} {[%emt 00:00:22]} Qxd5 {[%clk
00:03:29]} {[%emt 00:00:09]} 35. Qc2 {[%clk 00:09:13]} {[%emt 00:00:37]} Rd7
{[%clk 00:02:48]} {[%emt 00:00:51]} 36. Rd1 {[%clk 00:09:05]} {[%emt 00:00:18]}
b5 {[%clk 00:02:38]} {[%emt 00:00:20]} 37. b3 {[%clk 00:08:53]} {[%emt
00:00:22]} Rc7 {[%clk 00:02:30]} {[%emt 00:00:17]} 38. Qb2 {[%clk 00:08:44]}
{[%emt 00:00:21]} Ka8 {[%clk 00:02:05]} {[%emt 00:00:34]} 39. Qd2 {[%clk
00:08:10]} {[%emt 00:00:44]} Kb7 {[%clk 00:01:50]} {[%emt 00:00:26]} 40. Ka1
{[%clk 00:08:09]} {[%emt 00:00:11]} a6 {[%clk 00:01:47]} {[%emt 00:00:12]} 41.
Rb1 {[%clk 00:07:57]} {[%emt 00:00:22]} Ka7 {[%clk 00:01:47]} {[%emt 00:00:09]}
42. Qe3 {[%clk 00:08:00]} {[%emt 00:00:08]} Ka8 {[%clk 00:01:11]} {[%emt
00:00:46]} 43. Qe8+ {[%clk 00:05:38]} {[%emt 00:02:32]} Ka7 {[%clk 00:01:08]}
{[%emt 00:00:14]} 44. Qe3 {[%clk 00:05:47]} {[%emt 00:00:01]} Ka8 {[%clk
00:01:13]} {[%emt 00:00:05]} 45. Rc1 {[%clk 00:05:40]} {[%emt 00:00:17]} Kb7
{[%clk 00:00:57]} {[%emt 00:00:26]} 46. Qd3 {[%clk 00:05:44]} {[%emt 00:00:05]}
Kb6 {[%clk 00:00:54]} {[%emt 00:00:12]} 47. c4 {[%clk 00:05:43]} {[%emt
00:00:12]} bxc4 {[%clk 00:01:02]} {[%emt 00:00:02]} 48. bxc4 {[%clk 00:05:51]}
{[%emt 00:00:01]} Qa5 {[%clk 00:00:44]} {[%emt 00:00:27]} 49. Qb3+ {[%clk
00:05:56]} {[%emt 00:00:07]} Kc6 {[%clk 00:00:42]} {[%emt 00:00:11]} 50. c5
{[%clk 00:05:48]} {[%emt 00:00:18]} Rd7 {[%clk 00:00:27]} {[%emt 00:00:25]} 51.
Qe6+ {[%clk 00:05:42]} {[%emt 00:00:16]} Kc7 {[%clk 00:00:32]} {[%emt
00:00:04]} 52. d5 {[%clk 00:05:45]} {[%emt 00:00:08]} Qd2 {[%clk 00:00:25]}
{[%emt 00:00:17]} 53. Qb6+ {[%clk 00:05:49]} {[%emt 00:00:06]} Kc8 {[%clk
00:00:29]} {[%emt 00:00:06]} 54. Qxa6+ {[%clk 00:05:41]} {[%emt 00:00:18]} Kd8
{[%clk 00:00:16]} {[%emt 00:00:22]} 55. Qf6+ {[%clk 00:05:01]} {[%emt
00:00:50]} Kc8 {[%clk 00:00:11]} {[%emt 00:00:15]} 56. Rb1 {[%clk 00:05:03]}
{[%emt 00:00:08]} Qxd5 {[%clk 00:00:14]} {[%emt 00:00:07]} 57. Qa6+ {[%clk
00:02:57]} {[%emt 00:02:16]} Kd8 {[%clk 00:00:15]} {[%emt 00:00:09]} 58. Qb6+
{[%clk 00:02:53]} {[%emt 00:00:14]} Ke7 {[%clk 00:00:13]} {[%emt 00:00:11]} 59.
c6 {[%clk 00:01:34]} {[%emt 00:01:30]} Qd4+ {[%clk 00:00:22]} {[%emt 00:00:01]}
60. Qxd4 {[%clk 00:01:33]} {[%emt 00:00:11]} Rxd4 {[%clk 00:00:31]} {[%emt
00:00:02]} 61. Rc1 {[%clk 00:01:35]} {[%emt 00:00:07]} Kd8 {[%clk 00:00:36]}
{[%emt 00:00:05]} 62. Kb2 {[%clk 00:01:33]} {[%emt 00:00:11]} Rd2+ {[%clk
00:00:40]} {[%emt 00:00:06]} 63. Kb3 {[%clk 00:01:42]} {[%emt 00:00:01]} Rxg2
{[%clk 00:00:48]} {[%emt 00:00:03]} 64. a4 {[%clk 00:01:29]} {[%emt 00:00:24]}
Rg3 {[%clk 00:00:25]} {[%emt 00:00:33]} 65. a5 {[%clk 00:01:38]} {[%emt
00:00:02]} Rxf3+ {[%clk 00:00:33]} {[%emt 00:00:01]} 66. Kb4 {[%clk 00:01:47]}
Rf4+ {[%clk 00:00:38]} {[%emt 00:00:05]} 67. Kb5 {[%clk 00:01:56]} Kc7 {[%clk
00:00:45]} {[%emt 00:00:02]} 68. a6 {[%clk 00:02:04]} {[%emt 00:00:02]} Rf2
{[%clk 00:00:50]} {[%emt 00:00:05]} 69. Ra1 {[%clk 00:01:41]} {[%emt 00:00:33]}
Rb2+ {[%clk 00:00:45]} {[%emt 00:00:15]} 70. Kc4 {[%clk 00:01:33]} {[%emt
00:00:15]} Rb8 {[%clk 00:00:28]} {[%emt 00:00:30]} 71. Kc5 {[%clk 00:01:15]}
{[%emt 00:00:28]} Ra8 {[%clk 00:00:24]} {[%emt 00:00:14]} 72. a7 {[%clk
00:01:12]} {[%emt 00:00:14]} f4 {[%clk 00:00:15]} {[%emt 00:00:19]} 73. Rd1
{[%clk 00:00:31]} {[%emt 00:00:51]} Rxa7 {[%clk 00:00:11]} {[%emt 00:00:14]} 74.
Rd7+ {[%clk 00:00:31]} {[%emt 00:00:10]} Kb8 {[%clk 00:00:19]} {[%emt
00:00:02]} 75. Kd6 {[%clk 00:00:17]} {[%emt 00:00:24]} Ra6 {[%clk 00:00:18]}
{[%emt 00:00:11]} 76. Rd8+ {[%clk 00:00:14]} {[%emt 00:00:13]} Ka7 {[%clk
00:00:24]} {[%emt 00:00:04]} 77. Rd7+ {[%clk 00:00:20]} {[%emt 00:00:05]} Kb8
{[%clk 00:00:29]} {[%emt 00:00:05]} 78. Rd8+ {[%clk 00:00:28]} {[%emt
00:00:01]} Ka7 {[%clk 00:00:38]} 79. Rf8 {[%clk 00:00:22]} {[%emt 00:00:15]} g5
{[%clk 00:00:30]} {[%emt 00:00:19]} 80. Rf7+ {[%clk 00:00:25]} {[%emt
00:00:07]} Kb8 {[%clk 00:00:36]} {[%emt 00:00:04]} 81. Rxh7 {[%clk 00:00:21]}
{[%emt 00:00:15]} f3 {[%clk 00:00:35]} {[%emt 00:00:11]} 82. Rh8+ {[%clk
00:00:24]} {[%emt 00:00:06]} Ka7 {[%clk 00:00:43]} {[%emt 00:00:02]} 83. Rh7+
{[%clk 00:00:31]} {[%emt 00:00:04]} Kb8 {[%clk 00:00:51]} {[%emt 00:00:02]} 84.
Rh8+ {[%clk 00:00:39]} {[%emt 00:00:02]} 1/2-1/2



[ePGN "0.1;DGT LiveChess/2.2.6"]

[Event "MČR družstev mladších žáků 2024"]
[Site "Harrachov, Czech Republic"]
[Date "2024.06.15"]
[Round "7.4"]
[White "Zavrel Daniel"]
[Black "Gernert Tomas"]
[Result "0-1"]
[TimeControl "25+10"]
[WhiteFideId "23753951"]
[BlackFideId "23750219"]
[WhiteElo "1106"]
[BlackElo "1409"]

1. e4 {[%clk 00:25:17]} {[%emt 00:00:02]} c5 {[%clk 00:25:19]} {[%emt
00:00:01]} 2. Nf3 {[%clk 00:25:26]} {[%emt 00:00:02]} Nc6 {[%clk 00:25:27]}
{[%emt 00:00:02]} 3. d4 {[%clk 00:25:34]} {[%emt 00:00:01]} cxd4 {[%clk
00:25:36]} {[%emt 00:00:02]} 4. Nxd4 {[%clk 00:25:42]} {[%emt 00:00:02]} g6
{[%clk 00:25:44]} {[%emt 00:00:02]} 5. Nc3 {[%clk 00:25:48]} {[%emt 00:00:04]}
Bg7 {[%clk 00:25:53]} {[%emt 00:00:02]} 6. Be3 {[%clk 00:25:34]} {[%emt
00:00:24]} Nf6 {[%clk 00:25:55]} {[%emt 00:00:08]} 7. Bd3 {[%clk 00:25:36]}
{[%emt 00:00:08]} O-O {[%clk 00:25:45]} {[%emt 00:00:20]} 8. O-O {[%clk
00:25:43]} {[%emt 00:00:04]} d5 {[%clk 00:25:04]} {[%emt 00:00:51]} 9. exd5
{[%clk 00:24:08]} {[%emt 00:01:45]} Nxd5 {[%clk 00:25:10]} {[%emt 00:00:03]} 10.
Bc4 {[%clk 00:23:56]} {[%emt 00:00:23]} Nxe3 {[%clk 00:24:45]} {[%emt
00:00:36]} 11. Nxc6 {[%clk 00:20:34]} {[%emt 00:03:32]} Nxd1 {[%clk 00:24:08]}
{[%emt 00:00:47]} 12. Nxd8 {[%clk 00:20:26]} {[%emt 00:00:18]} Nxc3 {[%clk
00:24:04]} {[%emt 00:00:13]} 13. Bxf7+ {[%clk 00:20:20]} {[%emt 00:00:16]} Kh8
{[%clk 00:23:28]} {[%emt 00:00:47]} 14. bxc3 {[%clk 00:17:25]} {[%emt
00:03:05]} Rxd8 {[%clk 00:23:32]} {[%emt 00:00:06]} 15. Rad1 {[%clk 00:17:10]}
{[%emt 00:00:24]} Bf5 {[%clk 00:23:14]} {[%emt 00:00:28]} 16. Rxd8+ {[%clk
00:16:11]} {[%emt 00:01:09]} Rxd8 {[%clk 00:23:22]} {[%emt 00:00:02]} 17. h3
{[%clk 00:16:10]} {[%emt 00:00:11]} Bxc3 {[%clk 00:23:10]} {[%emt 00:00:22]} 18.
Rb1 {[%clk 00:16:03]} {[%emt 00:00:15]} Be5 {[%clk 00:22:43]} {[%emt 00:00:37]}
19. g4 {[%clk 00:15:48]} {[%emt 00:00:25]} Bxc2 {[%clk 00:22:09]} {[%emt
00:00:44]} 20. Rxb7 {[%clk 00:15:52]} {[%emt 00:00:05]} Rd1+ {[%clk 00:22:16]}
{[%emt 00:00:05]} 21. Kg2 {[%clk 00:16:00]} {[%emt 00:00:02]} Be4+ {[%clk
00:22:24]} {[%emt 00:00:03]} 22. f3 {[%clk 00:16:04]} {[%emt 00:00:05]} Rd2+
{[%clk 00:22:28]} {[%emt 00:00:05]} 23. Kf1 {[%clk 00:16:08]} {[%emt 00:00:04]}
Bxb7 {[%clk 00:22:36]} {[%emt 00:00:04]} 0-1



[ePGN "0.1;DGT LiveChess/2.2.6"]